[Event "RUS-chT Premier 2021"]
[White "Pervakov,Sergey"]
[Black "Saveliev,Alexei"]
[WhiteTeam "Киммерия"]
[BlackTeam "СШОР"]
[Site "Sochi"]
[Round "7.23"]
[Annotator "NA"]
[Result "1/2-1/2"]
[Date "2021.05.08"]
[WhiteElo "2056"]
[BlackElo "2358"]
[PlyCount "124"]
[TimeControl "60"]

1. d4 {[%emt 0:0:0]} Nf6 {[%emt 0:0:0]} 2. Nf3 {[%emt 0:0:0]} d5 {[%emt 0:2:13]
} 3. Bf4 {[%emt 0:0:15]} c5 {[%emt 0:0:24]} 4. e3 {[%emt 0:0:0]} Nc6 {[%emt 0:1:59]} 5. c3 {[%emt 0:0:15]} cxd4 {[%emt 0:0:14]} 6. exd4 {[%emt 0:1:32]} Bf5 {[%emt 0:0:18]} 7. Nbd2 {[%emt 0:0:54]} e6 {[%emt 0:0:0]} 8. Be2 {[%emt 0:2:54]} Bd6 {[%emt 0:2:27]} 9. Bxd6 {[%emt 0:8:20]} Qxd6 {[%emt 0:0:2]} 10. 0-0 {[%emt 0:0:9]} 0-0 {[%emt 0:13:27]} 11. Re1 {[%emt 0:2:31]
} a6 {[%emt 0:0:38]} 12. a4 {[%emt 0:0:11]} Bg4 {[%emt 0:3:22]
} 13. Ne5 {[%emt 0:17:1]} Bxe2 {[%emt 0:0:28]} 14. Qxe2 {[%emt 0:0:18]} Ne7 {[%emt 0:0:38]} 15. a5 {[%emt 0:2:24]} Qc7 {[%emt 0:0:39]} 16. Nb3 {[%emt 0:0:0]} Ne4 {[%emt 0:7:25]} 17. f3 {[%emt 0:6:46]} Nd6 {[%emt 0:0:5]} 18. Nc5 {[%emt 0:1:13]} Nc6 {[%emt 0:0:14]} 19. Nxc6 {[%emt 0:8:17]} Qxc6 {[%emt 0:0:5]
} 20. Qd3 {[%emt 0:3:38]} Rfe8 {[%emt 0:0:35]} 21. f4 {[%emt 0:0:0]} Re7 {[%emt 0:3:39]} 22. Re2 {[%emt 0:4:31]} Qc7 {[%emt 0:2:56]} 23. b4 {[%emt 0:4:4]} Rae8 {[%emt 0:5:22]} 24. Rae1 {[%emt 0:3:51]} Nc4 {[%emt 0:5:30]
} 25. Qf3 {[%emt 0:4:30]} Qd6 {[%emt 0:2:51]} 26. Qg4 {[%emt 0:0:0]} g6 {[%emt 0:2:22]} 27. Qg5 {[%emt 0:2:48]} Kg7 {[%emt 0:1:7]} 28. Rf1 {[%emt 0:0:39]} f6 {[%emt 0:11:2]} 29. Qh4 {[%emt 0:0:43]} b6 {[%emt 0:0:0]} 30. axb6 {[%emt 0:0:14]} Qxb6 {[%emt 0:0:4]} 31. Qh3 {[%emt 0:2:14]
} a5 {[%emt 0:8:18]} 32. bxa5 {[%emt 0:1:4]} Nxa5 {[%emt 0:0:2]} 33. Rfe1 {[%emt 0:0:38]} f5 {[%emt 0:0:38]} 34. Qd3 {[%emt 0:2:45]} Nc4 {[%emt 0:0:0]} 35. g3 {[%emt 0:2:0]} e5 {[%emt 0:10:4]} 36. fxe5 {[%emt 0:2:14]} Nxe5 {[%emt 0:0:2]} 37. Nd7 {[%emt 0:3:12]} Rxd7 {[%emt 0:0:22]} 38. Rxe5 {[%emt 0:0:5]
} Rxe5 {[%emt 0:2:22]} 39. Rxe5 {[%emt 0:0:7]} Qc6 {[%emt 0:0:0]} 40. Qe3 {[%emt 0:0:0]} Qc7 {[%emt 0:0:0]} 41. h4 {[%emt 0:17:0]} h5 {[%emt 0:12:35]} 42. Kg2 {[%emt 0:9:2]} Kh7 {[%emt 0:1:17]} 43. Re8 {[%emt 0:2:44]
} Rf7 {[%emt 0:1:28]} 44. Qe6 {[%emt 0:1:6]} Qd7 {[%emt 0:0:0]} 45. Qe5 {[%emt 0:1:10]} Rg7 {[%emt 0:0:12]} 46. Qb8 {[%emt 0:2:20]} Rf7 {[%emt 0:0:8]} 47. Rh8+ {[%emt 0:2:28]} Kg7 {[%emt 0:0:0]} 48. Qe5+ {[%emt 0:0:35]
} Rf6 {[%emt 0:0:4]} 49. Ra8 {[%emt 0:2:38]} Qe6 {[%emt 0:0:0]} 50. Ra7+ {[%emt 0:0:22]} Kg8 {[%emt 0:0:9]} 51. Ra8+ {[%emt 0:1:5]} Kg7 {[%emt 0:0:11]} 52. Ra7+ {[%emt 0:0:5]} Kg8 {[%emt 0:0:2]} 53. Kf3 {[%emt 0:1:3]
} Qxe5 {[%emt 0:6:56]} 54. dxe5 {[%emt 0:0:5]} Rc6 {[%emt 0:0:0]} 55. Kf4 {[%emt 0:0:29]} Kf8 {[%emt 0:1:30]} 56. Rd7 {[%emt 0:1:15]} Ke8 {[%emt 0:0:55]} 57. Rxd5 {[%emt 0:0:7]} Ke7 {[%emt 0:0:16]} 58. Ra5 {[%emt 0:0:48]
} Rc4+ {[%emt 0:0:34]} 59. Kg5 {[%emt 0:0:29]} Rg4+ {[%emt 0:0:0]} 60. Kh6 {[%emt 0:0:12]} Rxg3 {[%emt 0:0:2]} 61. Ra6 {[%emt 0:0:48]} Rg4 {[%emt 0:1:35]} 62. c4 {[%emt 0:0:20]} Rxh4 {[%emt 0:1:2]} 1/2-1/2